[Event "Early-Titled-Tuesday-Blitz-September-12-2023"]
[Site "Chess.com"]
[Date "2023.09.12"]
[Round "7"]
[White "KNVB"]
[Black "PapiPapita"]
[Result "1-0"]
[WhiteElo "2761"]
[BlackElo "2586"]
[TimeControl "180+1"]
[EndTime "9:19:00 PDT"]
[Termination "KNVB won on time"]

1. c4 {[%clk 0:03:00.9]} 1... c5 {[%clk 0:02:58.7]} 2. Nf3 {[%clk 0:02:59.8]}
2... g6 {[%clk 0:02:58.5]} 3. e4 {[%clk 0:02:58.1]} 3... Bg7 {[%clk 0:02:58.4]}
4. d4 {[%clk 0:02:58.1]} 4... cxd4 {[%clk 0:02:59.3]} 5. Nxd4 {[%clk 0:02:59]}
5... Nc6 {[%clk 0:02:59.4]} 6. Be3 {[%clk 0:02:58.5]} 6... Nf6 {[%clk
0:02:54.8]} 7. Nc3 {[%clk 0:02:58.1]} 7... O-O {[%clk 0:02:53.9]} 8. Be2 {[%clk
0:02:48.5]} 8... d6 {[%clk 0:02:52.4]} 9. O-O {[%clk 0:02:46.1]} 9... Qa5 {[%clk
0:02:50]} 10. Re1 {[%clk 0:02:35.6]} 10... Bd7 {[%clk 0:02:46.6]} 11. f3 {[%clk
0:01:49.4]} 11... Rfc8 {[%clk 0:02:38]} 12. Rc1 {[%clk 0:01:48.8]} 12... a6
{[%clk 0:02:33.5]} 13. Nb3 {[%clk 0:01:23.1]} 13... Qd8 {[%clk 0:02:23.9]} 14.
Na4 {[%clk 0:01:19.3]} 14... Rab8 {[%clk 0:02:01.9]} 15. Nb6 {[%clk 0:01:17.1]}
15... Bh6 {[%clk 0:01:49.4]} 16. Bxh6 {[%clk 0:01:06]} 16... Qxb6+ {[%clk
0:01:49.2]} 17. Kh1 {[%clk 0:01:00.2]} 17... Ne5 {[%clk 0:01:49.3]} 18. Bf4
{[%clk 0:00:39.2]} 18... Ba4 {[%clk 0:01:33]} 19. c5 {[%clk 0:00:29.1]} 19...
Bxb3 {[%clk 0:01:30.5]} 20. Qxb3 {[%clk 0:00:29.3]} 20... Qxb3 {[%clk
0:01:27.5]} 21. axb3 {[%clk 0:00:30]} 21... Nfd7 {[%clk 0:01:20.7]} 22. cxd6
{[%clk 0:00:27.6]} 22... exd6 {[%clk 0:01:21.6]} 23. Red1 {[%clk 0:00:18.8]}
23... Rxc1 {[%clk 0:01:16.7]} 24. Rxc1 {[%clk 0:00:18.1]} 24... Kf8 {[%clk
0:01:16.3]} 25. Kg1 {[%clk 0:00:14.3]} 25... Ke7 {[%clk 0:01:16.1]} 26. Be3
{[%clk 0:00:05.1]} 26... Kd8 {[%clk 0:01:13.7]} 27. Kf1 {[%clk 0:00:03.6]} 27...
Rc8 {[%clk 0:01:14]} 28. Rxc8+ {[%clk 0:00:03.7]} 28... Kxc8 {[%clk 0:01:14.9]}
29. f4 {[%clk 0:00:02.6]} 29... Nc6 {[%clk 0:01:13.4]} 30. Bc4 {[%clk
0:00:03.1]} 30... f6 {[%clk 0:01:09.7]} 31. Bg8 {[%clk 0:00:03.2]} 31... h6
{[%clk 0:01:09.7]} 32. Ke2 {[%clk 0:00:01.9]} 32... Nc5 {[%clk 0:01:05.7]} 33.
Bd5 {[%clk 0:00:02.1]} 33... Kd7 {[%clk 0:01:02.9]} 34. h4 {[%clk 0:00:01.5]}
34... Ne7 {[%clk 0:00:59]} 35. Kf3 {[%clk 0:00:01.3]} 35... Nxd5 {[%clk
0:00:58.4]} 36. exd5 {[%clk 0:00:02.2]} 36... f5 {[%clk 0:00:48.9]} 37. h5
{[%clk 0:00:02.3]} 37... gxh5 {[%clk 0:00:47.9]} 38. Kg3 {[%clk 0:00:02.7]}
38... Ne4+ {[%clk 0:00:29.3]} 39. Kh4 {[%clk 0:00:03.2]} 39... Nf6 {[%clk
0:00:29.4]} 40. Bd4 {[%clk 0:00:03.6]} 40... Nxd5 {[%clk 0:00:29.9]} 41. g3
{[%clk 0:00:04.3]} 41... Ke6 {[%clk 0:00:23.9]} 42. Kxh5 {[%clk 0:00:04.7]}
42... Nb4 {[%clk 0:00:22.9]} 43. Kxh6 {[%clk 0:00:03]} 43... Nc2 {[%clk
0:00:23.1]} 44. Bh8 {[%clk 0:00:01.9]} 44... d5 {[%clk 0:00:23.4]} 45. Kg6
{[%clk 0:00:02.5]} 45... Ne3 {[%clk 0:00:17.6]} 46. Bd4 {[%clk 0:00:02.3]} 46...
Nc2 {[%clk 0:00:16.9]} 47. Bf2 {[%clk 0:00:01.3]} 47... d4 {[%clk 0:00:17.4]}
48. g4 {[%clk 0:00:01.2]} 48... d3 {[%clk 0:00:14.7]} 49. gxf5+ {[%clk
0:00:01.8]} 49... Kd7 {[%clk 0:00:10.4]} 50. f6 {[%clk 0:00:02]} 50... d2 {[%clk
0:00:10.8]} 51. f7 {[%clk 0:00:02.8]} 51... d1=Q {[%clk 0:00:10.9]} 52. f8=Q
{[%clk 0:00:03.4]} 52... Qg4+ {[%clk 0:00:10.9]} 53. Kh7 {[%clk 0:00:02.9]}
53... Qh5+ {[%clk 0:00:06.3]} 54. Kg8 {[%clk 0:00:03]} 54... Qg4+ {[%clk
0:00:06.2]} 55. Qg7+ {[%clk 0:00:03.4]} 55... Qxg7+ {[%clk 0:00:03.6]} 56. Kxg7
{[%clk 0:00:04.3]} 56... Na1 {[%clk 0:00:02.4]} 57. f5 {[%clk 0:00:04.4]} 1-0

[Event "Early-Titled-Tuesday-Blitz-September-12-2023"]
[Site "Chess.com"]
[Date "2023.09.12"]
[Round "7"]
[White "BillieKimbah"]
[Black "Arystanner"]
[Result "1-0"]
[WhiteElo "3020"]
[BlackElo "2835"]
[TimeControl "180+1"]
[EndTime "9:19:06 PDT"]
[Termination "BillieKimbah won by resignation"]

1. d4 {[%clk 0:03:00.9]} 1... d5 {[%clk 0:02:59.8]} 2. Nf3 {[%clk 0:03:00.9]}
2... Nf6 {[%clk 0:02:59.7]} 3. Bg5 {[%clk 0:03:00.8]} 3... Ne4 {[%clk 0:02:59]}
4. Bh4 {[%clk 0:03:00.6]} 4... c6 {[%clk 0:02:59.6]} 5. e3 {[%clk 0:03:00.7]}
5... Qb6 {[%clk 0:02:59.9]} 6. Nbd2 {[%clk 0:03:00.3]} 6... Bf5 {[%clk
0:03:00.2]} 7. Be2 {[%clk 0:02:53.5]} 7... e6 {[%clk 0:03:00.4]} 8. O-O {[%clk
0:02:53.4]} 8... Nd7 {[%clk 0:02:59]} 9. c4 {[%clk 0:02:53.5]} 9... Nxd2 {[%clk
0:02:46.1]} 10. Qxd2 {[%clk 0:02:51.3]} 10... Bb4 {[%clk 0:02:42.4]} 11. Qc1
{[%clk 0:02:48]} 11... Qc7 {[%clk 0:02:24.7]} 12. c5 {[%clk 0:02:33.7]} 12...
Qc8 {[%clk 0:02:24.1]} 13. a3 {[%clk 0:02:24.1]} 13... Ba5 {[%clk 0:02:24.6]}
14. b4 {[%clk 0:02:24.4]} 14... Bc7 {[%clk 0:02:25]} 15. b5 {[%clk 0:02:25]}
15... O-O {[%clk 0:02:23.2]} 16. a4 {[%clk 0:02:24.6]} 16... e5 {[%clk
0:02:22.2]} 17. a5 {[%clk 0:02:14.7]} 17... a6 {[%clk 0:02:11.5]} 18. bxc6
{[%clk 0:02:13.5]} 18... bxc6 {[%clk 0:02:12.4]} 19. Qa3 {[%clk 0:02:10.1]}
19... Re8 {[%clk 0:02:08.6]} 20. Bg3 {[%clk 0:02:07]} 20... Be4 {[%clk
0:01:58.8]} 21. Qa4 {[%clk 0:02:01.1]} 21... Bxf3 {[%clk 0:01:55.4]} 22. Bxf3
{[%clk 0:02:02]} 22... exd4 {[%clk 0:01:43.2]} 23. exd4 {[%clk 0:02:01.5]} 23...
Bxg3 {[%clk 0:01:42.7]} 24. hxg3 {[%clk 0:02:02.4]} 24... Nf8 {[%clk 0:01:42]}
25. Rab1 {[%clk 0:02:01.7]} 25... Ra7 {[%clk 0:01:25.8]} 26. Rb6 {[%clk
0:02:00.6]} 26... Rc7 {[%clk 0:01:26.4]} 27. Qb3 {[%clk 0:01:52.2]} 27... Ne6
{[%clk 0:01:23.9]} 28. Qd3 {[%clk 0:01:52]} 28... g6 {[%clk 0:01:21.6]} 29. Rd1
{[%clk 0:01:51.6]} 29... Ra7 {[%clk 0:01:18.6]} 30. Be2 {[%clk 0:01:49.4]} 30...
Nxd4 {[%clk 0:01:11]} 31. Qxd4 {[%clk 0:01:38.4]} 31... Rxe2 {[%clk 0:01:11.1]}
32. Rdb1 {[%clk 0:01:37]} 32... Ra8 {[%clk 0:01:11.5]} 33. Rb7 {[%clk
0:01:21.2]} 33... Qf8 {[%clk 0:00:59.1]} 34. Rc7 {[%clk 0:01:09.7]} 34... Re4
{[%clk 0:00:46.7]} 35. Qf6 {[%clk 0:00:50.7]} 35... Re6 {[%clk 0:00:45.3]} 36.
Qf4 {[%clk 0:00:50.4]} 36... Rae8 {[%clk 0:00:41.6]} 37. Rbb7 {[%clk 0:00:47.4]}
37... R6e7 {[%clk 0:00:20.5]} 38. Rxe7 {[%clk 0:00:37.5]} 38... Rxe7 {[%clk
0:00:20.8]} 39. Rb6 {[%clk 0:00:37.7]} 39... Re4 {[%clk 0:00:18.3]} 40. Qf6
{[%clk 0:00:18.7]} 40... Re1+ {[%clk 0:00:17.3]} 41. Kh2 {[%clk 0:00:19]} 41...
Qh6+ {[%clk 0:00:18]} 42. Qh4 {[%clk 0:00:19.1]} 42... Qxh4+ {[%clk 0:00:18.7]}
43. gxh4 {[%clk 0:00:20]} 43... Rc1 {[%clk 0:00:11.8]} 44. Rxc6 {[%clk
0:00:20.1]} 44... Kg7 {[%clk 0:00:10.8]} 45. Kg3 {[%clk 0:00:20.1]} 45... d4
{[%clk 0:00:11.4]} 46. Kf3 {[%clk 0:00:19.9]} 46... d3 {[%clk 0:00:09.2]} 47.
Ke3 {[%clk 0:00:20.1]} 47... Rc3 {[%clk 0:00:09.6]} 48. Kd2 {[%clk 0:00:19.9]}
48... Rc2+ {[%clk 0:00:10]} 49. Kxd3 {[%clk 0:00:20.2]} 49... Rxf2 {[%clk
0:00:10.8]} 50. Rxa6 {[%clk 0:00:20.5]} 50... Rxg2 {[%clk 0:00:10.2]} 51. c6
{[%clk 0:00:20.9]} 51... Rg3+ {[%clk 0:00:10.8]} 52. Kd4 {[%clk 0:00:19.4]}
52... Rg1 {[%clk 0:00:10]} 53. Ra8 {[%clk 0:00:13.2]} 53... Rc1 {[%clk
0:00:08.8]} 54. Rc8 {[%clk 0:00:13.5]} 54... f5 {[%clk 0:00:08]} 55. a6 {[%clk
0:00:13.1]} 55... Ra1 {[%clk 0:00:07.8]} 56. c7 {[%clk 0:00:12.6]} 56... Ra4+
{[%clk 0:00:08.2]} 57. Kc3 {[%clk 0:00:11.1]} 1-0

[Event "Early-Titled-Tuesday-Blitz-September-12-2023"]
[Site "Chess.com"]
[Date "2023.09.12"]
[Round "7"]
[White "CristianS27"]
[Black "ChessQueen"]
[Result "1/2-1/2"]
[WhiteElo "2518"]
[BlackElo "2715"]
[TimeControl "180+1"]
[EndTime "9:19:28 PDT"]
[Termination "Game drawn by repetition"]

1. e4 {[%clk 0:03:00.9]} 1... c6 {[%clk 0:02:59.8]} 2. d4 {[%clk 0:02:58.9]}
2... d5 {[%clk 0:03:00.3]} 3. exd5 {[%clk 0:02:59.8]} 3... cxd5 {[%clk
0:03:00.3]} 4. c4 {[%clk 0:02:58.8]} 4... Nf6 {[%clk 0:02:59.6]} 5. Nc3 {[%clk
0:02:58.8]} 5... Nc6 {[%clk 0:02:59.9]} 6. Bg5 {[%clk 0:02:57.6]} 6... Be6
{[%clk 0:02:58.6]} 7. Be2 {[%clk 0:02:56.8]} 7... Qa5 {[%clk 0:02:27.7]} 8. c5
{[%clk 0:02:55.8]} 8... Ne4 {[%clk 0:02:23.5]} 9. Bd2 {[%clk 0:02:53.9]} 9...
Nxd2 {[%clk 0:02:20.5]} 10. Qxd2 {[%clk 0:02:54.8]} 10... g6 {[%clk 0:02:12.7]}
11. Nf3 {[%clk 0:02:53.6]} 11... Bg7 {[%clk 0:02:13.1]} 12. Bb5 {[%clk
0:02:44.2]} 12... O-O {[%clk 0:02:11.1]} 13. O-O {[%clk 0:02:39.8]} 13... Qc7
{[%clk 0:01:59.8]} 14. h3 {[%clk 0:02:28.7]} 14... Rad8 {[%clk 0:01:56.2]} 15.
Rfe1 {[%clk 0:02:27.7]} 15... Bf5 {[%clk 0:01:55]} 16. Ba4 {[%clk 0:01:35.6]}
16... a6 {[%clk 0:01:41]} 17. Bxc6 {[%clk 0:01:26.1]} 17... bxc6 {[%clk
0:01:30]} 18. Qe2 {[%clk 0:01:26.4]} 18... Qb7 {[%clk 0:01:23.3]} 19. Na4 {[%clk
0:01:14]} 19... Rfe8 {[%clk 0:01:20.2]} 20. Nb6 {[%clk 0:01:10.4]} 20... f6
{[%clk 0:00:57.8]} 21. Nh4 {[%clk 0:01:00.4]} 21... Bc8 {[%clk 0:00:41.3]} 22.
Nxc8 {[%clk 0:01:00.5]} 22... Qxc8 {[%clk 0:00:41.5]} 23. Qe6+ {[%clk 0:01:01]}
23... Qxe6 {[%clk 0:00:41.8]} 24. Rxe6 {[%clk 0:01:01.9]} 24... Rc8 {[%clk
0:00:42.4]} 25. Rae1 {[%clk 0:01:00.7]} 25... Kf7 {[%clk 0:00:42.7]} 26. Nf3
{[%clk 0:00:57]} 26... Rc7 {[%clk 0:00:40.7]} 27. g4 {[%clk 0:00:49.4]} 27...
Rb8 {[%clk 0:00:40.6]} 28. b3 {[%clk 0:00:49.9]} 28... Bf8 {[%clk 0:00:38.8]}
29. Kg2 {[%clk 0:00:43.7]} 29... a5 {[%clk 0:00:29.9]} 30. R1e3 {[%clk
0:00:38.4]} 30... a4 {[%clk 0:00:25]} 31. h4 {[%clk 0:00:29.3]} 31... Rb4 {[%clk
0:00:21.6]} 32. h5 {[%clk 0:00:27]} 32... a3 {[%clk 0:00:19.7]} 33. hxg6+ {[%clk
0:00:26.3]} 33... hxg6 {[%clk 0:00:20.6]} 34. g5 {[%clk 0:00:26.3]} 34... Rxb3
{[%clk 0:00:17.4]} 35. Rxe7+ {[%clk 0:00:14.4]} 35... Bxe7 {[%clk 0:00:09.3]}
36. Rxb3 {[%clk 0:00:15.3]} 36... fxg5 {[%clk 0:00:09.7]} 37. Ne5+ {[%clk
0:00:14.9]} 37... Ke6 {[%clk 0:00:09.3]} 38. Rxa3 {[%clk 0:00:15]} 38... Bf6
{[%clk 0:00:09.8]} 39. Re3 {[%clk 0:00:11.7]} 39... Bxe5 {[%clk 0:00:10.1]} 40.
Rxe5+ {[%clk 0:00:12.6]} 40... Kf6 {[%clk 0:00:10.7]} 41. Re8 {[%clk 0:00:10.3]}
41... Ra7 {[%clk 0:00:10.9]} 42. Rd8 {[%clk 0:00:07.8]} 42... Ra6 {[%clk
0:00:11.3]} 43. Kf3 {[%clk 0:00:07.3]} 43... Ra3+ {[%clk 0:00:10.8]} 44. Kg2
{[%clk 0:00:07.3]} 44... Kf5 {[%clk 0:00:08]} 45. Rd6 {[%clk 0:00:08.2]} 45...
Ra6 {[%clk 0:00:07.8]} 46. Kg3 {[%clk 0:00:06.5]} 46... Ra3+ {[%clk 0:00:06.8]}
47. f3 {[%clk 0:00:06.2]} 47... g4 {[%clk 0:00:07.4]} 48. Rxc6 {[%clk
0:00:05.1]} 48... Rxf3+ {[%clk 0:00:07.5]} 49. Kg2 {[%clk 0:00:05.6]} 49... Ra3
{[%clk 0:00:07.3]} 50. Rd6 {[%clk 0:00:05.1]} 50... Rxa2+ {[%clk 0:00:07.8]} 51.
Kg3 {[%clk 0:00:05.2]} 51... Ra3+ {[%clk 0:00:08.2]} 52. Kg2 {[%clk 0:00:05.6]}
52... Ke4 {[%clk 0:00:06.7]} 53. Rxg6 {[%clk 0:00:04.6]} 53... Kxd4 {[%clk
0:00:07.1]} 54. c6 {[%clk 0:00:04.7]} 54... Rc3 {[%clk 0:00:05.5]} 55. Rxg4+
{[%clk 0:00:03.9]} 55... Ke5 {[%clk 0:00:05.9]} 56. Rg6 {[%clk 0:00:03.8]} 56...
d4 {[%clk 0:00:06.2]} 57. Kf2 {[%clk 0:00:02.8]} 57... Rc2+ {[%clk 0:00:06.1]}
58. Ke1 {[%clk 0:00:02.9]} 58... Ke4 {[%clk 0:00:06.6]} 59. Re6+ {[%clk
0:00:02.6]} 59... Kd3 {[%clk 0:00:07]} 60. Kd1 {[%clk 0:00:03.1]} 60... Ra2
{[%clk 0:00:06.7]} 61. Kc1 {[%clk 0:00:03.2]} 61... Ra1+ {[%clk 0:00:06.7]} 62.
Kb2 {[%clk 0:00:03.7]} 62... Ra8 {[%clk 0:00:06.7]} 63. c7 {[%clk 0:00:03.8]}
63... Rc8 {[%clk 0:00:06.6]} 64. Rc6 {[%clk 0:00:04.4]} 64... Kd2 {[%clk
0:00:05.7]} 65. Kb3 {[%clk 0:00:04]} 65... d3 {[%clk 0:00:05.3]} 66. Kc4 {[%clk
0:00:04.6]} 66... Kc2 {[%clk 0:00:05.4]} 67. Kd5+ {[%clk 0:00:04.6]} 67... Kd1
{[%clk 0:00:05.1]} 68. Ke6 {[%clk 0:00:04.7]} 68... d2 {[%clk 0:00:05.5]} 69.
Kd7 {[%clk 0:00:05.2]} 69... Rxc7+ {[%clk 0:00:05.9]} 70. Kxc7 {[%clk 0:00:06]}
70... Ke1 {[%clk 0:00:06]} 71. Re6+ {[%clk 0:00:06.6]} 71... Kf2 {[%clk
0:00:06.2]} 72. Rf6+ {[%clk 0:00:07]} 72... Ke2 {[%clk 0:00:06.6]} 73. Re6+
{[%clk 0:00:07.5]} 73... Kf2 {[%clk 0:00:07.1]} 74. Rf6+ {[%clk 0:00:08.1]}
74... Ke2 {[%clk 0:00:07.6]} 75. Re6+ {[%clk 0:00:08.8]} 75... Kf2 {[%clk
0:00:08.1]} 1/2-1/2

[Event "Early-Titled-Tuesday-Blitz-September-12-2023"]
[Site "Chess.com"]
[Date "2023.09.12"]
[Round "7"]
[White "DopplerCharlotteDeWitte"]
[Black "BlueWizzard"]
[Result "1-0"]
[WhiteElo "2693"]
[BlackElo "2947"]
[TimeControl "180+1"]
[EndTime "9:19:31 PDT"]
[Termination "DopplerCharlotteDeWitte won on time"]

1. e4 {[%clk 0:03:00.9]} 1... g6 {[%clk 0:03:00.4]} 2. d4 {[%clk 0:02:56.5]}
2... d5 {[%clk 0:03:00.7]} 3. e5 {[%clk 0:02:54.6]} 3... c5 {[%clk 0:03:00.6]}
4. c3 {[%clk 0:02:54.6]} 4... Nc6 {[%clk 0:02:59.8]} 5. Nf3 {[%clk 0:02:55.2]}
5... Bg4 {[%clk 0:02:59.3]} 6. Bb5 {[%clk 0:02:55.4]} 6... Qa5 {[%clk
0:02:49.9]} 7. Bxc6+ {[%clk 0:02:52.4]} 7... bxc6 {[%clk 0:02:50.8]} 8. O-O
{[%clk 0:02:52.3]} 8... e6 {[%clk 0:02:45.4]} 9. Nbd2 {[%clk 0:02:44.1]} 9...
cxd4 {[%clk 0:02:25.1]} 10. cxd4 {[%clk 0:02:42.4]} 10... Nh6 {[%clk 0:02:25.5]}
11. h3 {[%clk 0:02:36.3]} 11... Bxf3 {[%clk 0:02:20.6]} 12. Nxf3 {[%clk
0:02:29.9]} 12... Nf5 {[%clk 0:02:20.2]} 13. Bg5 {[%clk 0:02:25.7]} 13... Be7
{[%clk 0:02:13.8]} 14. Bxe7 {[%clk 0:02:23.8]} 14... Nxe7 {[%clk 0:02:10.9]} 15.
Qc1 {[%clk 0:02:20.6]} 15... h6 {[%clk 0:02:06.4]} 16. Qf4 {[%clk 0:02:15]}
16... Nf5 {[%clk 0:02:06.5]} 17. g4 {[%clk 0:02:12.4]} 17... g5 {[%clk
0:02:06.4]} 18. Qc1 {[%clk 0:02:10.9]} 18... Ne7 {[%clk 0:02:04.5]} 19. Qe3
{[%clk 0:02:02.7]} 19... Rb8 {[%clk 0:01:58.6]} 20. b3 {[%clk 0:02:02.7]} 20...
Qa3 {[%clk 0:01:50.4]} 21. Rfc1 {[%clk 0:02:00]} 21... a5 {[%clk 0:01:46]} 22.
Rc5 {[%clk 0:01:54.2]} 22... a4 {[%clk 0:01:41.3]} 23. bxa4 {[%clk 0:01:39.9]}
23... Qxa4 {[%clk 0:01:41.5]} 24. Qc3 {[%clk 0:01:29.1]} 24... Kf8 {[%clk
0:01:21.6]} 25. Ra5 {[%clk 0:01:25.2]} 25... Qc4 {[%clk 0:01:17.8]} 26. Qxc4
{[%clk 0:01:24.4]} 26... dxc4 {[%clk 0:01:18.7]} 27. Rc5 {[%clk 0:01:21.6]}
27... Ra8 {[%clk 0:01:14.9]} 28. Rxc4 {[%clk 0:01:20.7]} 28... Ra3 {[%clk
0:01:14.7]} 29. Nd2 {[%clk 0:01:18]} 29... Rxh3 {[%clk 0:01:09.9]} 30. a4 {[%clk
0:01:16]} 30... h5 {[%clk 0:01:09.3]} 31. Nf1 {[%clk 0:00:28.3]} 31... hxg4
{[%clk 0:01:05.7]} 32. Ng3 {[%clk 0:00:15.5]} 32... Nf5 {[%clk 0:01:01.5]} 33.
Rcc1 {[%clk 0:00:06.6]} 33... Nxg3 {[%clk 0:00:54.2]} 34. fxg3 {[%clk
0:00:06.8]} 34... Rxg3+ {[%clk 0:00:53.4]} 35. Kf2 {[%clk 0:00:07.7]} 35... Rd3
{[%clk 0:00:48.8]} 36. Kg2 {[%clk 0:00:06.8]} 36... Rd2+ {[%clk 0:00:37.7]} 37.
Kg3 {[%clk 0:00:05.4]} 37... Rhh2 {[%clk 0:00:28]} 38. Rg1 {[%clk 0:00:04.5]}
38... Rhe2 {[%clk 0:00:25.7]} 39. a5 {[%clk 0:00:03]} 39... Rxd4 {[%clk
0:00:22.4]} 40. a6 {[%clk 0:00:02.6]} 40... Re3+ {[%clk 0:00:19.7]} 41. Kf2
{[%clk 0:00:03.2]} 41... Rf3+ {[%clk 0:00:19.7]} 42. Ke2 {[%clk 0:00:03.7]}
42... Re4+ {[%clk 0:00:18.4]} 43. Kd2 {[%clk 0:00:03.9]} 43... Rd4+ {[%clk
0:00:17.4]} 44. Ke2 {[%clk 0:00:04.2]} 44... Rd8 {[%clk 0:00:18.3]} 45. a7
{[%clk 0:00:03.9]} 45... Ra8 {[%clk 0:00:18.4]} 46. Rgb1 {[%clk 0:00:04.5]}
46... Kg7 {[%clk 0:00:17.6]} 47. Rb8 {[%clk 0:00:04.6]} 47... Rxa7 {[%clk
0:00:18]} 48. Rxa7 {[%clk 0:00:05.3]} 48... Rc3 {[%clk 0:00:17.1]} 49. Rbb7
{[%clk 0:00:04.7]} 49... Rf3 {[%clk 0:00:16.8]} 50. Rb4 {[%clk 0:00:05.4]} 50...
Rf5 {[%clk 0:00:16.6]} 51. Rxg4 {[%clk 0:00:05.5]} 51... Rxe5+ {[%clk
0:00:17.1]} 52. Kf3 {[%clk 0:00:05.9]} 52... Kg6 {[%clk 0:00:17.7]} 53. Rc4
{[%clk 0:00:06]} 53... c5 {[%clk 0:00:17.9]} 54. Rc7 {[%clk 0:00:06.3]} 54...
Rf5+ {[%clk 0:00:18.3]} 55. Kg3 {[%clk 0:00:06.3]} 55... Rd5 {[%clk 0:00:18.1]}
56. R7xc5 {[%clk 0:00:07.2]} 56... Rd3+ {[%clk 0:00:18.3]} 57. Kg2 {[%clk
0:00:07.3]} 57... Rd2+ {[%clk 0:00:18.9]} 58. Kf3 {[%clk 0:00:07.4]} 58... Rd3+
{[%clk 0:00:19.1]} 59. Ke2 {[%clk 0:00:07.9]} 59... Rg3 {[%clk 0:00:17.7]} 60.
Kf2 {[%clk 0:00:08]} 60... Rh3 {[%clk 0:00:17.9]} 61. Rc8 {[%clk 0:00:07.6]}
61... Rh2+ {[%clk 0:00:16.6]} 62. Kg3 {[%clk 0:00:07.9]} 62... Rd2 {[%clk
0:00:16.7]} 63. R4c5 {[%clk 0:00:08.1]} 63... Rd3+ {[%clk 0:00:17]} 64. Kf2
{[%clk 0:00:08.7]} 64... Rd2+ {[%clk 0:00:17.2]} 65. Ke3 {[%clk 0:00:09.1]}
65... Rd1 {[%clk 0:00:17.2]} 66. Rg8+ {[%clk 0:00:08.5]} 66... Kf6 {[%clk
0:00:17.3]} 67. Rgxg5 {[%clk 0:00:07.6]} 67... Rf1 {[%clk 0:00:16.7]} 68. Rg2
{[%clk 0:00:07.3]} 68... Ke7 {[%clk 0:00:16.5]} 69. Rf2 {[%clk 0:00:07.5]} 69...
Re1+ {[%clk 0:00:16.9]} 70. Kd2 {[%clk 0:00:08.1]} 70... Ra1 {[%clk 0:00:15.2]}
71. Rc7+ {[%clk 0:00:08.4]} 71... Ke8 {[%clk 0:00:10.4]} 72. Rcxf7 {[%clk
0:00:09.3]} 72... Ra2+ {[%clk 0:00:10.6]} 73. Ke3 {[%clk 0:00:09.2]} 1-0